bitfinex/quotes_SOLUSD_20241110
["timestamp","ask_amount","ask_price","bid_price","bid_amount"]
[1731258691289,11.83469311,211.13,211.07,4.7376]
[1731258691501,11.83469311,211.12,211.07,4.7376]
[1731258692796,11.83469311,211.11,211.06,11.8447]
[1731258693099,11.83469311,211.08,211.06,11.8447]
[1731258694196,11.83469311,211.07,211.02,4.7387]
[1731258694395,11.83469311,211.06,211.02,4.7387]
[1731258694597,11.83469311,211.05,211.01,11.8474]
[1731258694894,11.83469311,211.04,211.01,11.8474]
[1731258695100,11.83469311,211.02,210.97,4.74]
[1731258695402,11.83469311,211.01,210.97,4.74]
[1731258695694,11.83469311,211.0,210.96,17.8927]
[1731258695882,11.83469311,210.99,210.96,11.8504]
[1731258696278,11.83469311,210.98,210.96,11.8504]
[1731258696479,0.1,211.12,210.97,11.83469311]
[1731258696685,11.83469311,211.06,210.99,11.83469311]
[1731258696997,11.83469311,211.06,211.0,16.5876]
[1731258697192,11.83469311,211.09,211.02,11.83469311]
[1731258697399,11.83469311,211.11,211.03,20.0]
[1731258697596,11.83469311,211.13,211.06,11.83469311]
[1731258697899,11.83469311,211.12,211.05,11.83469311]
[1731258698279,11.83469311,211.13,211.06,11.83469311]
[1731258698674,11.83469311,211.13,211.07,16.5821]
[1731258699491,11.83469311,211.12,211.07,16.5821]
[1731258699890,11.83469311,211.11,211.07,16.5821]
[1731258700488,11.83469311,211.11,211.07,11.8444]
[1731258700797,11.83469311,211.12,211.07,11.8444]
[1731258704084,11.83469311,211.14,211.07,11.8444]
[1731258704801,11.83469311,211.13,211.07,11.8444]
[1731258705189,11.83469311,211.14,211.07,16.5821]
[1731258705379,11.83469311,211.12,211.07,16.5821]
[1731258707386,11.83469311,211.12,211.07,11.8444]
[1731258707583,11.83469311,211.1,211.07,11.8444]
[1731258708003,11.83469311,211.11,211.07,11.8444]
[1731258710909,11.83469311,211.08,210.99,4.7395]
[1731258711103,0.1,211.11,210.99,4.7395]
[1731258711104,11.83469311,211.03,210.99,4.7395]
[1731258711307,11.83469311,211.01,210.95,4.7404]
[1731258711486,11.83469311,211.01,210.95,16.5915]
[1731258712007,11.83469311,210.99,210.95,16.5915]
[1731258712590,11.83469311,210.98,210.95,11.8511]
[1731258712905,11.83469311,210.96,210.91,11.8533]
[1731258713088,11.83469311,210.97,210.91,16.5946]
[1731258713802,11.83469311,210.95,210.91,16.5946]
[1731258714004,11.83469311,210.93,210.91,16.5946]
[1731258714301,11.83469311,210.93,210.91,11.8533]
[1731258714685,11.83469311,210.93,210.87,4.93434032]
[1731258714888,11.83469311,210.9,210.87,9.67644032]
[1731258715213,11.83469311,210.94,210.87,28.43239311]
[1731258715786,11.83469311,210.91,210.87,16.5977]
[1731258716021,11.83469311,210.9,210.87,16.5977]
[1731258716708,11.83469311,210.9,210.87,11.8556]
[1731258716901,11.83469311,210.9,210.85,4.7427]
[1731258717102,11.83469311,210.88,210.85,4.7427]
[1731258717297,11.83469311,210.89,210.85,4.7427]
[1731258718095,11.83469311,210.88,210.83,16.6009]
[1731258718290,11.83469311,210.89,210.83,16.6009]
[1731258720200,11.83469311,210.93,210.86,11.83469311]
[1731258720408,11.83469311,210.91,210.84,23.776884]
[1731258720599,11.83469311,210.9,210.84,23.776884]
[1731258721000,11.83469311,210.89,210.83,16.6009]
[1731258721310,11.83469311,210.91,210.84,11.83469311]
[1731258721694,11.83469311,210.9,210.83,28.43559311]
[1731258722300,11.83469311,210.91,210.84,11.83469311]
[1731258722505,11.83469311,210.92,210.85,28.43409311]
[1731258722910,11.83469311,210.95,210.88,11.83469311]
[1731258723113,11.83469311,210.96,210.86,23.776884]
[1731258723309,11.83469311,210.96,210.88,11.83469311]
[1731258723503,11.83469311,210.95,210.88,11.83469311]
[1731258724541,11.83469311,210.95,210.89,16.5963]
[1731258724710,11.83469311,210.96,210.89,28.43099311]
[1731258724898,11.83469311,210.96,210.89,16.5963]
[1731258725093,11.83469311,210.96,210.9,6.3305]
[1731258725289,11.83469311,210.99,210.92,11.83469311]
[1731258725491,11.83469311,210.99,210.91,23.776884]
[1731258725712,11.83469311,210.99,210.92,11.83469311]
[1731258726095,11.83469311,210.98,210.91,35.61157711]
[1731258726713,11.83469311,210.98,210.92,16.5939]
[1731258726900,11.83469311,210.99,210.92,28.42859311]
[1731258727402,4.7388,211.03,210.92,28.42859311]
[1731258727403,11.83469311,210.98,210.92,16.5939]
[1731258729000,11.83469311,210.93,210.92,16.5939]
[1731258729197,11.83469311,210.93,210.92,11.8528]
[1731258729894,11.83469311,210.93,210.85,35.54819311]
[1731258730101,11.83469311,210.92,210.87,11.8552]
[1731258730412,11.83469311,210.96,210.88,11.83469311]
[1731258730821,11.83469311,210.97,210.9,11.83469311]
[1731258731014,11.83469311,210.98,210.91,11.83469311]
[1731258731819,11.83469311,211.0,210.94,11.83469311]
[1731258732395,11.83469311,211.0,210.93,11.83469311]
[1731258733107,11.83469311,211.01,210.94,11.83469311]
[1731258733819,11.83469311,211.01,210.95,4.7404]
[1731258734020,11.83469311,211.0,210.95,4.7404]
[1731258734332,11.83469311,210.98,210.95,4.7404]
[1731258734623,4.7386,211.04,210.88,20.0]
[1731258734624,11.83469311,210.96,210.88,20.0]
[1731258734808,11.83469311,210.96,210.89,11.83469311]
[1731258735118,11.83469311,210.95,210.88,31.83469311]
[1731258735495,11.83469311,210.93,210.87,16.5976]
[1731258735700,11.83469311,210.92,210.87,11.8554]
[1731258735918,11.83469311,210.94,210.87,11.8554]
[1731258736301,11.83469311,210.93,210.87,11.8554]
[1731258736715,11.83469311,210.92,210.87,11.8554]
[1731258737421,11.83469311,210.93,210.87,11.8554]
[1731258738410,11.83469311,210.92,210.87,11.8554]
[1731258738614,11.83469311,210.9,210.87,11.8554]
[1731258739016,11.83469311,210.89,210.87,11.8554]
[1731258739419,11.83469311,210.92,210.87,11.8554]
[1731258741210,11.83469311,210.95,210.88,11.83469311]
[1731258742121,11.83469311,210.95,210.89,16.5963]
[1731258742331,11.83469311,210.96,210.89,28.43099311]
[1731258744429,11.83469311,210.94,210.87,11.83469311]
[1731258744624,11.83469311,210.93,210.86,35.54669311]
[1731258744827,11.83469311,210.93,210.87,43.776884]
[1731258745006,11.83469311,210.95,210.88,11.83469311]
[1731258745211,11.83469311,210.94,210.87,11.83469311]
[1731258745533,11.83469311,210.96,210.89,23.68919311]
[1731258745733,11.83469311,211.0,210.93,11.83469311]
[1731258746822,16.611,211.02,210.92,11.83469311]
[1731258746823,11.83469311,210.99,210.92,11.83469311]
[1731258747010,11.83469311,210.98,210.91,11.83469311]
[1731258747217,11.83469311,210.98,210.92,23.776884]
[1731258747531,11.83469311,210.98,210.93,16.5931]
[1731258748210,11.83469311,211.0,210.93,28.42779311]
[1731258749541,11.83469311,210.98,210.93,16.5931]
[1731258749761,11.83469311,210.96,210.93,11.8522]
[1731258749928,11.83469311,210.95,210.93,11.8522]
[1731258750237,4.7388,211.02,210.89,4.7416]
[1731258750238,11.83469311,210.94,210.89,4.7416]
[1731258750417,11.83469311,210.94,210.89,16.5961]
[1731258750614,11.83469311,210.92,210.89,16.5961]
[1731258750940,11.83469311,210.91,210.87,4.742]
[1731258751145,11.83469311,210.93,210.87,4.742]
[1731258751428,11.83469311,210.94,210.87,23.69029311]
[1731258751820,11.83469311,210.98,210.91,11.83469311]
[1731258752440,0.1,211.03,210.87,11.8556]
[1731258752441,11.83469311,210.99,210.92,11.83469311]
[1731258753133,11.83469311,210.98,210.92,11.83469311]
[1731258753429,11.83469311,210.98,210.91,11.83469311]
[1731258754134,11.83469311,210.99,210.92,11.83469311]
[1731258754939,11.83469311,210.99,210.93,16.5931]
[1731258755125,4.7391,211.01,210.93,16.5931]
[1731258755126,11.83469311,210.98,210.93,16.5931]
[1731258755931,11.83469311,210.96,210.93,11.8522]
[1731258756232,11.83469311,210.95,210.93,11.8522]
[1731258756426,11.83469311,210.97,210.93,11.8522]
[1731258756623,0.1,211.02,210.93,11.8522]
[1731258756624,11.83469311,210.96,210.93,11.8522]
[1731258757940,11.83469311,210.97,210.93,11.8522]
[1731258758235,11.83469311,210.96,210.93,11.8522]
[1731258758428,11.83469311,210.95,210.93,11.8522]
[1731258759139,11.83469311,210.95,210.9,4.7415]
[1731258759915,11.83469311,210.96,210.9,4.7415]
[1731258760335,11.83469311,210.96,210.9,16.5954]
[1731258761137,11.83469311,210.94,210.9,16.5954]
[1731258761443,11.83469311,210.93,210.9,16.5954]
[1731258761820,11.83469311,210.94,210.9,16.5954]
[1731258762729,11.83469311,210.94,210.9,11.8539]
[1731258763735,11.83469311,210.96,210.9,11.8539]
[1731258765424,11.83469311,210.95,210.9,11.8539]
[1731258766524,11.83469311,210.94,210.9,11.8539]
[1731258767242,11.83469311,210.93,210.9,11.8539]
[1731258767448,11.83469311,210.94,210.9,11.8539]
[1731258768452,11.83469311,210.93,210.87,23.776884]
[1731258769342,11.83469311,210.91,210.86,40.311]
[1731258769732,11.83469311,210.9,210.86,16.5986]
[1731258769928,11.83469311,210.89,210.86,16.5986]
[1731258770438,11.83469311,210.88,210.86,11.8562]
[1731258770631,0.1,210.96,210.86,11.8562]
[1731258770632,11.83469311,210.87,210.86,11.8562]
[1731258771035,11.83469311,210.88,210.86,11.8562]
[1731258771836,11.83469311,210.87,210.86,11.8562]
[1731258772848,11.83469311,210.87,210.82,16.79322531]
[1731258773036,11.83469311,210.84,210.82,16.6016]
[1731258773233,11.83469311,210.83,210.82,11.8583]
[1731258774129,11.83469311,210.83,210.82,16.6016]
[1731258774327,11.83469311,210.83,210.82,11.8583]
[1731258774548,11.83469311,210.83,210.78,11.8605]
[1731258774746,11.83469311,210.79,210.78,11.8605]
[1731258775044,11.83469311,210.79,210.75,4.7449]
[1731258775254,11.83469311,210.77,210.75,4.7449]
[1731258775627,11.83469311,210.76,210.74,11.8628]
[1731258775826,11.83469311,210.75,210.71,4.7456]
[1731258776041,11.83469311,210.75,210.64,45.9315]
[1731258776042,11.83469311,210.72,210.7,11.8652]
[1731258776230,11.83469311,210.71,210.7,11.8652]
[1731258777246,11.83469311,210.72,210.7,11.8652]
[1731258777455,11.83469311,210.73,210.7,11.8652]
[1731258779929,21.0631,210.78,210.7,11.8652]
[1731258779930,11.83469311,210.75,210.7,11.8652]
[1731258780130,159.1,210.79,210.73,11.83469311]
[1731258780336,11.83469311,210.81,210.74,11.83469311]
[1731258780525,11.83469311,210.84,210.77,11.83469311]
[1731258780743,11.83469311,210.83,210.76,11.83469311]
[1731258780939,11.83469311,210.82,210.75,35.61157711]
[1731258781325,11.83469311,210.82,210.75,11.83469311]
[1731258781528,11.83469311,210.79,210.74,6.1903]
[1731258781723,11.83469311,210.79,210.72,11.83469311]
[1731258781948,11.83469311,210.78,210.72,16.6096]
[1731258782747,11.83469311,210.77,210.72,16.6096]
[1731258783349,11.83469311,210.81,210.74,11.83469311]
[1731258783541,11.83469311,210.81,210.75,11.83469311]
[1731258783729,11.83469311,210.81,210.74,11.83469311]
[1731258785429,11.83469311,210.8,210.74,16.608]
[1731258785733,11.83469311,210.77,210.74,16.608]
[1731258786034,11.83469311,210.76,210.74,16.608]
[1731258786353,11.83469311,210.81,210.74,28.44269311]
[1731258786555,11.83469311,210.82,210.75,11.83469311]
[1731258787058,11.83469311,210.83,210.76,16.6065]
[1731258787236,11.83469311,210.85,210.78,11.83469311]
[1731258787561,11.83469311,210.83,210.76,28.44119311]
[1731258787925,11.83469311,210.8,210.76,16.6065]
[1731258788130,11.83469311,210.79,210.76,11.8618]
[1731258788349,0.1,210.86,210.72,4.7456]
[1731258788652,11.83469311,210.81,210.74,11.83469311]
[1731258788848,11.83469311,210.83,210.76,11.83469311]
[1731258789236,11.83469311,210.82,210.75,16.57959311]
[1731258789437,11.83469311,210.83,210.76,11.83469311]
[1731258789637,11.83469311,210.8,210.75,4.7449]
[1731258789855,11.83469311,210.82,210.75,16.57959311]
[1731258790050,11.83469311,210.82,210.75,28.44189311]
[1731258790246,11.83469311,210.83,210.76,11.83469311]
[1731258790653,11.83469311,210.84,210.76,11.83469311]
[1731258791049,11.83469311,210.83,210.76,11.83469311]
[1731258791637,11.83469311,210.83,210.75,28.44189311]
[1731258791960,11.83469311,210.78,210.7,28.44589311]
[1731258792355,11.83469311,210.78,210.71,11.83469311]
[1731258792658,11.83469311,210.77,210.7,16.6112]
[1731258792959,4.7435,210.82,210.71,11.83469311]
[1731258793161,11.83469311,210.79,210.71,11.83469311]
[1731258793462,11.83469311,210.8,210.72,11.83469311]
[1731258793760,11.83469311,210.82,210.74,11.83469311]
[1731258794649,11.83469311,210.81,210.73,28.44359311]
[1731258794850,11.83469311,210.82,210.74,11.83469311]
[1731258795064,11.83469311,210.83,210.75,11.83469311]
[1731258795360,11.83469311,210.83,210.73,40.3359]
[1731258795361,11.83469311,210.83,210.76,11.83469311]
[1731258795951,11.83469311,210.84,210.77,11.83469311]
[1731258796561,11.83469311,210.83,210.76,11.83469311]
[1731258796759,11.83469311,210.85,210.77,11.83469311]
[1731258796960,11.83469311,210.85,210.78,16.6049]
[1731258798850,180.3504,210.88,210.78,11.8607]
[1731258798851,11.83469311,210.81,210.78,11.8607]
[1731258799750,11.83469311,210.79,210.78,11.8607]
[1731258800652,11.83469311,210.79,210.73,23.727]
[1731258801571,11.83469311,210.81,210.73,23.727]
[1731258802068,11.83469311,210.81,210.74,23.776884]
[1731258802241,11.83469311,210.83,210.74,55.61157711]
[1731258802663,11.83469311,210.81,210.74,55.61157711]
[1731258802971,11.83469311,210.81,210.75,16.6072]
[1731258803955,11.83469311,210.79,210.75,16.6072]
[1731258805076,11.83469311,210.77,210.75,16.6072]
[1731258805969,11.83469311,210.77,210.73,23.727]
[1731258806169,11.83469311,210.76,210.73,23.727]
[1731258806562,11.83469311,210.77,210.73,23.727]
[1731258807282,11.83469311,210.75,210.73,23.727]
[1731258807469,11.83469311,210.76,210.73,23.727]
[1731258807668,11.83469311,210.75,210.73,23.727]
[1731258808484,11.83469311,210.74,210.71,16.6104]
[1731258808980,11.83469311,210.75,210.71,16.6104]
[1731258810579,159.1,210.83,210.71,16.6104]
[1731258810580,11.83469311,210.73,210.71,16.6104]
[1731258810767,11.83469311,210.72,210.71,16.6104]
[1731258810953,22.4749,210.71,210.64,4.7474]
[1731258811159,22.4749,210.71,210.47,23.7554]
[1731258811160,0.1,210.63,210.49,4.7508]
[1731258811470,11.83469311,210.5,210.49,16.6278]
[1731258811684,11.83469311,210.51,210.49,16.6278]
[1731258811871,11.83469311,210.51,210.49,11.377]
[1731258812378,11.83469311,210.5,210.49,11.377]
[1731258812784,4.7478,210.62,210.49,11.377]
[1731258812785,19.04859702,210.52,210.49,11.377]
[1731258812976,19.04859702,210.53,210.49,11.377]
[1731258813175,19.04859702,210.54,210.49,11.377]
[1731258814262,19.04859702,210.55,210.49,11.377]
[1731258814473,19.04859702,210.59,210.52,19.04859702]
[1731258814690,19.04859702,210.6,210.53,19.04859702]
[1731258814883,19.04859702,210.6,210.52,19.04859702]
[1731258815067,19.04859702,210.59,210.51,39.04859702]
[1731258815266,0.1,210.64,210.51,19.04859702]
[1731258815490,19.04859702,210.56,210.51,20.0]
[1731258815789,19.04859702,210.54,210.49,11.377]
[1731258816263,19.04859702,210.55,210.49,11.377]
[1731258816769,4.7482,210.61,210.5,19.04859702]
[1731258816961,19.04859702,210.6,210.53,19.04859702]
[1731258817170,19.04859702,210.59,210.52,19.04859702]
[1731258817361,19.04859702,210.58,210.51,19.04859702]
[1731258817564,19.04859702,210.6,210.53,19.04859702]
[1731258817775,19.04859702,210.6,210.5,23.776884]
[1731258817970,19.04859702,210.6,210.53,19.04859702]
[1731258818184,19.04859702,210.63,210.56,19.04859702]
[1731258818364,19.04859702,210.64,210.51,20.0]
[1731258818770,19.04859702,210.63,210.54,23.776884]
[1731258819088,19.04859702,210.63,210.56,19.04859702]
[1731258819262,19.04859702,210.63,210.57,19.04859702]
[1731258819666,21.8179,210.85,210.63,42.57]
[1731258819863,19.04859702,210.83,210.66,23.776884]
[1731258820078,19.04859702,210.8,210.68,23.776884]
[1731258820258,0.1,210.82,210.68,23.776884]
[1731258820460,19.04859702,210.8,210.72,19.04859702]
[1731258821083,4.7438,210.8,210.7,4.7459]
[1731258821271,0.1,210.84,210.7,4.7459]
[1731258821272,19.04859702,210.83,210.75,19.04859702]
[1731258821784,19.04859702,210.82,210.75,19.04859702]
[1731258822113,21.7179,210.85,210.7,16.6111]
[1731258822114,21.7179,210.85,210.78,19.04859702]
[1731258822286,21.7179,210.85,210.71,43.776884]
[1731258822589,23.79059702,210.88,210.71,43.776884]
[1731258822801,19.04859702,210.87,210.71,43.776884]
[1731258823089,19.04859702,210.87,210.79,19.04859702]
[1731258823267,19.04859702,210.84,210.73,20.0]
[1731258823469,19.04859702,210.85,210.78,19.04859702]
[1731258823680,19.04859702,210.84,210.77,19.04859702]
[1731258823986,19.04859702,210.85,210.78,19.04859702]
[1731258824365,19.04859702,210.85,210.78,23.79279702]
[1731258825387,19.04859702,210.84,210.78,4.7442]
[1731258825684,19.04859702,210.81,210.76,11.8614]
[1731258825893,19.04859702,210.83,210.76,30.90999702]
[1731258826776,19.04859702,210.81,210.76,11.8614]
[1731258827166,19.04859702,210.8,210.76,11.8614]
[1731258827570,19.04859702,210.77,210.73,4.7453]
[1731258828786,19.04859702,210.74,210.67,19.04859702]
[1731258828973,19.04859702,210.73,210.66,19.04859702]
[1731258830378,19.04859702,210.73,210.67,4.7467]
[1731258831391,19.04859702,210.72,210.65,19.04859702]
[1731258831584,19.04859702,210.71,210.64,19.04859702]
[1731258832399,19.04859702,210.72,210.65,35.66379702]
[1731258832596,19.04859702,210.75,210.68,19.04859702]
[1731258833270,19.04859702,210.76,210.69,19.04859702]
[1731258833474,34.57319702,210.79,210.72,19.04859702]
[1731258833675,19.04859702,210.79,210.72,19.04859702]
[1731258834408,19.04859702,210.77,210.7,19.04859702]
[1731258834695,19.04859702,210.76,210.69,19.04859702]
[1731258834899,19.04859702,210.75,210.68,19.04859702]
[1731258835875,19.04859702,210.74,210.67,59.39599702]
[1731258836282,19.04859702,210.73,210.67,40.3474]
[1731258836802,19.04859702,210.72,210.67,40.3474]
[1731258837602,19.04859702,210.73,210.67,40.3474]
[1731258837901,19.04859702,210.77,210.7,19.04859702]
[1731258838297,19.04859702,210.78,210.71,19.04859702]
[1731258838683,19.04859702,210.76,210.69,19.04859702]
[1731258838878,19.04859702,210.76,210.7,19.04859702]
[1731258839083,19.04859702,210.76,210.71,16.6104]
[1731258840504,19.04859702,210.75,210.71,16.6104]
[1731258840705,19.04859702,210.77,210.71,35.65899702]
[1731258840882,19.04859702,210.79,210.73,19.04859702]
[1731258841212,19.04859702,210.81,210.74,19.04859702]
[1731258841581,19.04859702,210.81,210.75,19.04859702]
[1731258841804,19.04859702,210.8,210.71,16.6104]
[1731258842110,19.04859702,210.77,210.71,19.04859702]
[1731258842903,19.04859702,210.76,210.7,19.04859702]
[1731258843101,19.04859702,210.77,210.7,19.04859702]
[1731258843288,19.04859702,210.77,210.67,40.3474]
[1731258843289,19.04859702,210.79,210.72,19.04859702]
[1731258843802,19.04859702,210.82,210.69,23.776884]
[1731258843984,34.57319702,210.84,210.77,19.04859702]
[1731258844183,19.04859702,210.82,210.78,4.7442]
[1731258844982,19.04859702,210.8,210.77,11.8609]
[1731258847093,19.04859702,210.79,210.77,11.8609]
[1731258847293,19.04859702,210.78,210.77,11.8609]
[1731258847512,19.04859702,210.79,210.77,11.8609]
[1731258848713,19.04859702,210.79,210.73,16.6089]
[1731258848921,19.04859702,210.8,210.73,16.6089]
[1731258849101,19.04859702,210.82,210.75,19.04859702]
[1731258849303,19.04859702,210.81,210.74,19.04859702]
[1731258849525,19.04859702,210.8,210.74,19.04859702]
[1731258850425,19.04859702,210.81,210.75,16.6072]
[1731258851617,20.2675,210.84,210.68,20.0]
[1731258851618,19.04859702,210.82,210.76,19.04859702]
[1731258852214,19.04859702,210.85,210.78,19.04859702]
[1731258853213,19.04859702,210.84,210.72,43.776884]
[1731258853511,19.04859702,210.84,210.78,16.6049]
[1731258853817,19.04859702,210.82,210.78,16.6049]
[1731258854130,165.41,210.89,210.78,16.6049]
[1731258854131,4.7422,210.88,210.78,16.6049]
[1731258854303,19.04859702,210.84,210.78,16.6049]
[1731258854804,19.04859702,210.82,210.78,16.6049]
[1731258855011,19.04859702,210.81,210.78,11.8607]
[1731258856901,11.8746379,210.81,210.78,11.8607]
[1731258858306,11.8746379,210.81,210.72,20.0]
[1731258858629,11.8746379,210.81,210.74,11.8746379]
[1731258859122,11.8746379,210.84,210.77,11.8746379]
[1731258859299,11.8746379,210.85,210.78,11.8746379]
[1731258859496,11.8746379,210.85,210.73,23.776884]
[1731258859733,11.8746379,210.85,210.78,11.8746379]
[1731258860022,11.8746379,210.85,210.77,11.8746379]
[1731258860324,11.8746379,210.85,210.78,11.8746379]
[1731258860620,11.8746379,210.86,210.79,11.8746379]
[1731258861528,11.8746379,210.85,210.79,11.8746379]
[1731258861729,11.8746379,210.85,210.78,11.8746379]
[1731258861904,11.8746379,210.85,210.79,16.6041]
[1731258864029,11.8746379,210.84,210.79,16.6041]
[1731258864928,11.8746379,210.83,210.79,16.6041]
[1731258865104,11.8746379,210.82,210.79,16.6041]
[1731258866429,11.8746379,210.83,210.79,16.6041]
[1731258867708,11.8746379,210.83,210.79,11.8601]
[1731258869318,11.8746379,210.84,210.79,11.8601]
[1731258871140,11.8746379,210.83,210.79,11.8601]
[1731258872134,11.8746379,210.84,210.79,11.8601]
[1731258874330,11.8746379,210.83,210.79,11.8601]
[1731258876418,11.8746379,210.82,210.79,11.8601]
[1731258878249,11.8746379,210.81,210.79,11.8601]
[1731258878432,11.8746379,210.8,210.79,11.8601]
[1731258878741,11.8746379,210.8,210.75,11.8622]
[1731258878960,11.8746379,210.77,210.75,11.8622]
[1731258879120,11.8746379,210.76,210.75,11.8622]
[1731258879328,11.8746379,210.77,210.75,11.8622]
[1731258879737,11.8746379,210.77,210.71,16.6104]
[1731258880052,4.7434,210.82,210.71,16.6104]
[1731258880053,11.8746379,210.78,210.71,28.4850379]
[1731258880224,11.8746379,210.79,210.72,11.8746379]
[1731258881332,11.8746379,210.79,210.73,16.6089]
[1731258881531,11.8746379,210.8,210.73,16.6089]
[1731258881851,11.8746379,210.8,210.74,11.8746379]
[1731258882227,11.8746379,210.8,210.73,16.6089]
[1731258882228,11.8746379,210.83,210.73,40.3359]
[1731258882436,19.89907385,210.86,210.79,11.8746379]
[1731258882626,11.8746379,210.81,210.73,16.6089]
[1731258882844,11.8746379,210.78,210.73,16.6089]
[1731258883230,11.8746379,210.78,210.73,11.8635]
[1731258884059,11.8746379,210.79,210.73,11.8635]
[1731258884229,11.8746379,210.8,210.73,23.7381379]
[1731258884751,11.8746379,210.81,210.74,11.8746379]
[1731258885046,4.7428,210.85,210.73,11.8635]
[1731258885047,16.6174379,210.85,210.73,11.8635]
[1731258885248,16.6174379,210.85,210.71,28.475]
[1731258885249,11.8746379,210.85,210.77,11.8746379]
[1731258885635,11.8746379,210.85,210.78,11.8746379]
[1731258886945,11.8746379,210.84,210.78,16.6049]
[1731258887251,11.8746379,210.85,210.78,16.6049]
[1731258888248,11.8746379,210.84,210.78,16.6049]
[1731258888634,4.7422,210.87,210.78,16.6049]
[1731258888635,11.8746379,210.8,210.78,16.6049]
[1731258888837,11.8746379,210.83,210.71,23.7292]
[1731258889047,11.8746379,210.78,210.74,11.8627]
[1731258889236,11.8746379,210.79,210.74,11.8627]
[1731258889431,11.8746379,210.8,210.74,11.8627]
[1731258890258,11.8746379,210.82,210.74,23.7373379]
[1731258890551,11.8746379,210.83,210.75,11.8746379]
[1731258890736,11.8746379,210.84,210.77,11.8746379]
[1731258890938,16.6172379,210.86,210.79,11.8746379]
[1731258891332,16.6172379,210.86,210.8,4.7438]
[1731258891532,11.8746379,210.86,210.8,4.7438]
[1731258891740,16.80068174,210.89,210.82,11.8746379]
[1731258891940,16.71860883,210.89,210.82,11.8746379]
[1731258892348,11.8746379,210.88,210.81,11.8746379]
[1731258893036,11.8746379,210.87,210.8,28.4779379]
[1731258893340,11.8746379,210.85,210.77,35.5968379]
[1731258893753,11.8746379,210.85,210.78,11.8746379]
[1731258894050,11.8746379,210.85,210.77,35.5968379]
[1731258895549,11.8746379,210.85,210.77,52.2025379]
[1731258898563,11.8746379,210.85,210.77,23.7222]
[1731258901237,11.8746379,210.81,210.76,16.6065]
[1731258901443,11.8746379,210.77,210.71,11.864]
[1731258901659,11.8746379,210.75,210.71,11.864]
[1731258902055,11.8746379,210.74,210.71,11.864]
[1731258902362,11.8746379,210.73,210.68,4.93411445]
[1731258902748,15.3977,210.81,210.7,11.8746379]
[1731258902939,11.8746379,210.79,210.72,11.8746379]
[1731258903145,11.8746379,210.81,210.73,11.8746379]
[1731258903552,11.8746379,210.8,210.74,16.608]
[1731258904061,11.8746379,210.79,210.74,16.608]
[1731258904855,11.8746379,210.77,210.74,11.8629]
[1731258905160,11.8746379,210.76,210.74,11.8629]
[1731258905367,11.8746379,210.75,210.7,11.865]
[1731258905557,11.8746379,210.73,210.7,16.6109]
[1731258905944,23.976884,210.83,210.72,11.8746379]
[1731258905945,23.776884,210.83,210.72,11.8746379]
[1731258906151,11.8746379,210.79,210.72,11.8746379]
[1731258906349,11.8746379,210.78,210.71,11.8746379]
[1731258906550,11.8746379,210.74,210.7,16.6109]
[1731258906848,11.8746379,210.73,210.7,16.6109]
[1731258907462,11.8746379,210.74,210.7,16.6109]
[1731258907672,11.8746379,210.77,210.7,28.4855379]
[1731258907852,11.8746379,210.79,210.72,11.8746379]
[1731258908168,11.8746379,210.8,210.73,11.8746379]
[1731258908664,159.1,210.82,210.71,11.8746379]
[1731258908665,11.8746379,210.79,210.71,11.8746379]
[1731258908865,11.8746379,210.79,210.72,11.8746379]
[1731258909071,11.8746379,210.81,210.73,16.6089]
[1731258909272,11.8746379,210.81,210.74,11.8746379]
[1731258909459,11.8746379,210.79,210.73,16.6089]
[1731258910466,11.8746379,210.77,210.73,16.6089]
[1731258910843,11.8746379,210.76,210.73,16.6089]
[1731258911048,11.8746379,210.78,210.73,16.6089]
[1731258911258,11.8746379,210.77,210.73,16.6089]
[1731258911467,11.8746379,210.76,210.73,16.6089]
[1731258911674,11.8746379,210.74,210.73,11.8635]
[1731258911969,11.8746379,210.75,210.73,11.8635]
[1731258912557,11.8746379,210.78,210.73,11.8635]
[1731258913048,159.1,210.81,210.74,11.8746379]
[1731258913251,11.8746379,210.86,210.75,26.0609]
[1731258913451,159.1,210.9,210.8,11.8746379]
[1731258913452,11.8746379,210.87,210.8,11.8746379]
[1731258913662,170.9746379,210.86,210.78,11.8746379]
[1731258913867,11.8746379,210.85,210.78,11.8746379]
[1731258914846,11.8746379,210.8,210.79,16.6041]
[1731258915261,11.8746379,210.8,210.79,11.8601]
[1731258915566,11.8746379,210.82,210.79,11.8601]
[1731258916557,11.8746379,210.82,210.79,16.6041]
[1731258917077,11.8746379,210.82,210.79,11.8601]